fUSD/lending_fUSD_20240619
["ID","MTS","AMOUNT","RATE_DAILY","PERIOD"]
[329922371,1718835046812,-1338.106914,0.00013,2]
[329922372,1718835046950,-1682.55984517,0.00013,2]
[329922374,1718835272790,324.71,0.00010708,2]
[329922375,1718835602379,150.0,0.00010708,2]
[329922376,1718835847155,308.47,0.00010644,2]
[329922381,1718835969928,3443.790067,0.00018,14]
[329922390,1718836069039,754.0,0.00025,60]
[329922391,1718836185335,-1100.0,0.00013,4]
[329922392,1718836189887,459.0,0.00026,90]
[329922393,1718836206533,-250.0,0.00012538,2]
[329922394,1718836206564,-368.98,0.00012538,2]
[329922395,1718836206599,-179.02,0.00012575,2]
[329922396,1718836206629,-1000.0,0.00012576,2]
[329922397,1718836206660,-308.47,0.00012908,2]
[329922398,1718836206689,-1000.0,0.00012999,2]
[329922399,1718836222831,-19615.5916563,0.00013,2]
[329922400,1718836223124,-25183.05393772,0.00013,2]
[329922401,1718836232265,-3252.16784281,0.00013,2]
[329922402,1718836232277,-866.7628267,0.00013,2]
[329922403,1718836232290,-2015.29501095,0.00013,2]
[329922406,1718836232302,-22081.20265639,0.00013,2]
[329922408,1718836232313,-621.77146932,0.00013,2]
[329922410,1718836232326,-883.97785601,0.00013,2]
[329922413,1718836232339,-450.25,0.00013,2]
[329922414,1718836232469,-7001.3950875,0.00013,2]
[329922415,1718836232479,-2169.2277,0.00013,2]
[329922416,1718836232488,-2300.0,0.000131,4]
[329922417,1718836232497,-264.3772125,0.000131,2]
[329922418,1718836232509,-39.5827875,0.000131,2]
[329922419,1718836232518,-2397.56634249,0.000131,2]
[329922420,1718836232529,-1782.00032808,0.000131,2]
[329922421,1718836232540,-543.53654863,0.000131,2]
[329922422,1718836232552,-2253.71037969,0.000131,2]
[329922423,1718836232563,-1981.29640111,0.000131,2]
[329922424,1718836232572,-3400.0,0.000132,4]
[329922425,1718836232582,-150.0,0.0001326,2]
[329922426,1718836232591,-152.0,0.00013263,2]
[329922427,1718836232601,-499.99,0.000133,2]
[329922428,1718836232610,-153.35923179,0.000133,4]
[329922429,1718836232622,-3406.33436546,0.000133,4]
[329922430,1718836232633,-538.88,0.000133,4]
[329922431,1718836232644,-501.42640275,0.000133,4]
[329922432,1718836232654,-150.0,0.00013311,2]
[329922433,1718836232665,-1181.956,0.00013311,2]
[329922435,1718836232674,-1653.0,0.00013311,2]
[329922436,1718836232683,-1134.20461428,0.000134,2]
[329922438,1718836232694,-4125.0000005,0.000134,2]
[329922440,1718836232705,-1298.29138437,0.000134,2]
[329922442,1718836232717,-2708.4,0.000134,2]
[329922443,1718836232730,-778.63384695,0.000134,2]
[329922444,1718836232744,-4205.98716292,0.000134,2]
[329922445,1718836232755,-2131.10060352,0.000134,2]
[329922446,1718836232767,-6659.40709401,0.000134,2]
[329922447,1718836232780,-36779.02295496,0.000134,2]
[329922448,1718836232856,-1313.1152283,0.000134,2]
[329922449,1718836232868,-747.562701,0.000134,2]
[329922450,1718836232879,-5018.83705891,0.000134,2]
[329922451,1718836232891,-673.43302,0.000134,2]
[329922452,1718836232904,-9510.898581,0.000134,2]
[329922453,1718836238427,-30961.14939622,0.000134,2]
[329922454,1718836238440,-344.85876463,0.000134,2]
[329922455,1718836238452,-437.7186954,0.000134,2]
[329922456,1718836238463,-670.31329616,0.000134,2]
[329922457,1718836238475,-1941.56591577,0.000134,2]
[329922458,1718836238487,-675.40068488,0.000134,2]
[329922459,1718836238499,-8230.48366356,0.000134,2]
[329922460,1718836238511,-1078.0799953,0.000134,2]
[329922461,1718836238522,-1095.36771121,0.000134,2]
[329922462,1718836238534,-1840.7599115,0.000134,2]
[329922463,1718836238546,-14270.66182843,0.000134,2]
[329922464,1718836238557,-1847.439928,0.000134,2]
[329922465,1718836238569,-7020.34704115,0.000134,2]
[329922466,1718836238582,-1288.14338783,0.000134,2]
[329922467,1718836238597,-5114.17852271,0.000134,2]
[329922468,1718836238723,-166.891,0.00013311,2]
[329922469,1718836238738,-1282.99098274,0.000134,2]
[329922470,1718836238750,-4005.71897129,0.000134,2]
[329922471,1718836238762,-3580.9384525,0.000134,2]
[329922472,1718836238772,-172.18062891,0.000134,2]
[329922473,1718836238783,-5401.35171982,0.000134,4]
[329922474,1718836238795,-398.64828018,0.000134,4]
[329922475,1718836238805,-405.79384232,0.000135,2]
[329922476,1718836238817,-25251.74613698,0.000135,2]
[329922477,1718836238829,-308.66866659,0.000135,2]
[329922478,1718836238841,-4343.464663,0.000135,2]
[329922479,1718836238855,-1482.26936924,0.000135,2]
[329922480,1718836238866,-1703.41591,0.000135,2]
[329922481,1718836238877,-22281.08576953,0.000135,2]
[329922515,1718836240413,-262.26955316,0.000135,2]
[329922516,1718836240426,-3968.81077054,0.000135,2]
[329922517,1718836240436,-1100.0,0.000135,4]
[329922518,1718836240446,-1014.57334565,0.00013514,2]
[329922519,1718836240457,-219.83,0.00013589,3]
[329922520,1718836240466,-492.20059714,0.00013598,2]
[329922521,1718836240478,-1009.71667059,0.00013598,2]
[329922522,1718836240490,-3769.60395359,0.00013598,2]
[329922523,1718836240501,-177.27972599,0.00013598,2]
[329922524,1718836240511,-893.08502989,0.00013598,2]
[329922525,1718836240521,-1100.0,0.000136,4]
[329922526,1718836240531,-5271.52122122,0.00013625,2]
[329922527,1718836240542,-5271.52122122,0.00013653,2]
[329922528,1718836240552,-5271.52122122,0.0001368,2]
[329922529,1718836240562,-537.72037607,0.00013696,2]
[329922530,1718836240573,-3198.15287891,0.00013696,2]
[329922531,1718836240584,-1254.3721,0.00013696,2]
[329922532,1718836240596,-668.67887058,0.00013696,2]
[329922533,1718836240606,-207.0,0.00013696,2]
[329922534,1718836240615,-209.56877311,0.00013696,2]
[329922535,1718836240626,-289.7401589,0.00013696,2]
[329922536,1718836240637,-2172.25509687,0.00013696,2]
[329922537,1718836240647,-199.88498293,0.00013697,2]
[329922538,1718836240657,-152421.57279989,0.00013697,2]
[329922539,1718836240668,-616.28742313,0.00013697,2]
[329922540,1718836240679,-1831.83045146,0.00013697,3]
[329922541,1718836240689,-500.0,0.00013698,2]
[329922542,1718836240699,-500.0,0.00013698,2]
[329922543,1718836240710,-500.0,0.00013698,2]
[329922544,1718836240720,-500.0,0.00013698,2]
[329922545,1718836240731,-500.0,0.00013698,2]
[329922546,1718836240745,-506.2563528,0.00013698,2]
[329922547,1718836240755,-500.0,0.00013698,2]
[329922548,1718836240765,-500.0,0.00013698,2]
[329922549,1718836240777,-845.22,0.00013698,2]
[329922550,1718836240787,-500.0,0.00013698,2]
[329922551,1718836240797,-500.0,0.00013698,2]
[329922552,1718836240807,-500.0,0.00013698,2]
[329922553,1718836240821,-606.30568013,0.00013698,2]
[329922554,1718836240831,-500.94,0.00013698,2]
[329922555,1718836240841,-500.0,0.00013698,2]
[329922556,1718836240854,-500.0,0.00013698,2]
[329922557,1718836240864,-250.0,0.00013698,2]
[329922558,1718836240873,-803.09,0.00013698,2]
[329922559,1718836240883,-500.0,0.00013698,2]
[329922560,1718836240892,-500.0,0.00013698,2]
[329922561,1718836240901,-500.0,0.00013698,2]
[329922562,1718836240912,-500.0,0.00013698,2]
[329922563,1718836240922,-500.0,0.00013698,2]
[329922564,1718836240932,-548.3709784,0.00013698,2]
[329922565,1718836240942,-500.0,0.00013698,2]
[329922566,1718836240952,-500.0,0.00013698,2]
[329922567,1718836240962,-500.0,0.00013698,2]
[329922568,1718836240972,-500.0,0.00013698,2]
[329922569,1718836240982,-500.0,0.00013698,2]
[329922570,1718836240991,-500.0,0.00013698,2]
[329922571,1718836241001,-500.0,0.00013698,2]
[329922572,1718836241012,-500.0,0.00013698,2]
[329922573,1718836241022,-500.0,0.00013698,2]
[329922574,1718836241032,-500.0,0.00013698,2]
[329922575,1718836241041,-500.0,0.00013698,2]
[329922576,1718836241054,-298.42527144,0.00013698,2]
[329922577,1718836241068,-500.0,0.00013698,2]
[329922579,1718836241083,-500.0,0.00013698,2]
[329922581,1718836241097,-500.0,0.00013698,2]
[329922584,1718836241109,-500.0,0.00013698,2]
[329922586,1718836241119,-500.0,0.00013698,2]
[329922588,1718836241132,-500.0,0.00013698,2]
[329922590,1718836241146,-500.0,0.00013698,2]
[329922593,1718836241158,-500.0,0.00013698,2]
[329922595,1718836241173,-500.0,0.00013698,2]
[329922597,1718836241187,-500.0,0.00013698,2]
[329922599,1718836241199,-500.0,0.00013698,2]
[329922602,1718836241214,-500.0,0.00013698,2]
[329922605,1718836241228,-509.65301347,0.00013698,2]
[329922607,1718836241241,-500.0,0.00013698,2]
[329922609,1718836241254,-500.0,0.00013698,2]
[329922612,1718836241267,-732.83,0.00013698,2]
[329922614,1718836241279,-500.0,0.00013698,2]
[329922616,1718836241290,-500.0,0.00013698,2]
[329922618,1718836241305,-500.0,0.00013698,2]
[329922621,1718836241319,-500.0,0.00013698,2]
[329922623,1718836241332,-500.0,0.00013698,2]
[329922625,1718836241343,-500.0,0.00013698,2]
[329922627,1718836241356,-500.0,0.00013698,2]
[329922629,1718836241368,-500.0,0.00013698,2]
[329922632,1718836241380,-500.0,0.00013698,2]
[329922634,1718836241392,-500.0,0.00013698,2]
[329922637,1718836241405,-500.0,0.00013698,2]
[329922639,1718836241418,-500.0,0.00013698,2]
[329922641,1718836241430,-333.20401349,0.00013698,2]
[329922644,1718836241443,-500.0,0.00013698,2]
[329922645,1718836241456,-500.0,0.00013698,2]
[329922646,1718836241470,-500.0,0.00013698,2]
[329922647,1718836241480,-150.28512015,0.00013698,2]
[329922648,1718836241490,-561.61,0.00013698,2]
[329922649,1718836241502,-562.88,0.00013698,2]
[329922650,1718836241513,-500.0,0.00013698,2]
[329922651,1718836241526,-500.0,0.00013698,2]
[329922652,1718836241539,-500.0,0.00013698,2]
[329922653,1718836241551,-500.0,0.00013698,2]
[329922654,1718836241562,-500.0,0.00013698,2]
[329922655,1718836241573,-999.89618647,0.00013698,2]
[329922656,1718836241584,-500.0,0.00013698,2]
[329922657,1718836241598,-500.0,0.00013698,2]
[329922658,1718836241611,-500.0,0.00013698,2]
[329922659,1718836241622,-500.0,0.00013698,2]
[329922660,1718836241633,-500.0,0.00013698,2]
[329922661,1718836241643,-500.0,0.00013698,2]
[329922662,1718836241655,-551.99547637,0.00013698,2]
[329922663,1718836241666,-500.0,0.00013698,2]
[329922664,1718836241677,-500.0,0.00013698,2]
[329922665,1718836241696,-500.0,0.00013698,2]
[329922666,1718836241708,-500.0,0.00013698,2]
[329922667,1718836241719,-500.0,0.00013698,2]
[329922668,1718836241733,-500.0,0.00013698,2]
[329922669,1718836241745,-464.05813893,0.00013698,2]
[329922670,1718836241756,-500.0,0.00013698,2]
[329922671,1718836241768,-500.0,0.00013698,2]
[329922672,1718836241781,-500.0,0.00013698,2]
[329922673,1718836241792,-500.0,0.00013698,2]
[329922674,1718836241804,-541.06517689,0.00013698,2]
[329922675,1718836241816,-500.0,0.00013698,2]
[329922676,1718836241827,-500.0,0.00013698,2]
[329922677,1718836241839,-500.0,0.00013698,2]
[329922678,1718836241851,-188.94673594,0.00013698,2]
[329922679,1718836241862,-813.94,0.00013698,2]
[329922680,1718836241873,-539.93,0.00013698,2]
[329922681,1718836241884,-500.0,0.00013698,2]
[329922682,1718836241896,-500.0,0.00013698,2]
[329922683,1718836241908,-500.0,0.00013698,2]
[329922684,1718836241919,-500.0,0.00013698,2]
[329922685,1718836241931,-500.0,0.00013698,2]
[329922686,1718836241942,-478.59800765,0.00013698,2]
[329922687,1718836241954,-500.0,0.00013698,2]
[329922688,1718836241965,-500.0,0.00013698,2]
[329922689,1718836241977,-500.0,0.00013698,2]
[329922690,1718836241988,-500.0,0.00013698,2]
[329922691,1718836242000,-698.84,0.00013698,2]
[329922692,1718836242012,-500.0,0.00013698,2]
[329922693,1718836242024,-500.0,0.00013698,2]
[329922694,1718836242036,-500.0,0.00013698,2]
[329922695,1718836242047,-500.0,0.00013698,2]
[329922696,1718836242059,-561.97,0.00013698,2]
[329922697,1718836242071,-576.65,0.00013698,2]
[329922698,1718836242082,-500.0,0.00013698,2]
[329922699,1718836242093,-500.0,0.00013698,2]
[329922700,1718836242105,-500.0,0.00013698,2]
[329922701,1718836242116,-500.0,0.00013698,2]
[329922702,1718836242128,-504.89274069,0.00013698,2]
[329922703,1718836242140,-715.49,0.00013698,2]
[329922704,1718836242151,-500.0,0.00013698,2]
[329922705,1718836242163,-625.58,0.00013698,2]
[329922706,1718836242174,-500.0,0.00013698,2]
[329922707,1718836242186,-500.0,0.00013698,2]
[329922708,1718836242197,-500.0,0.00013698,2]
[329922709,1718836242208,-500.0,0.00013698,2]
[329922710,1718836242219,-561.91,0.00013698,2]
[329922711,1718836242230,-850.96,0.00013698,2]
[329922712,1718836242241,-500.0,0.00013698,2]
[329922713,1718836242253,-500.0,0.00013698,2]
[329922714,1718836242264,-500.0,0.00013698,2]
[329922715,1718836242275,-611.37631019,0.00013698,2]
[329922716,1718836242286,-500.0,0.00013698,2]
[329922717,1718836242296,-500.0,0.00013698,2]
[329922718,1718836242308,-532.32665541,0.00013698,2]
[329922719,1718836242319,-500.0,0.00013698,2]
[329922720,1718836242331,-500.0,0.00013698,2]
[329922721,1718836242342,-500.0,0.00013698,2]
[329922722,1718836242355,-500.0,0.00013698,2]
[329922723,1718836242367,-500.0,0.00013698,2]
[329922724,1718836242378,-500.0,0.00013698,2]
[329922725,1718836242389,-500.0,0.00013698,2]
[329922726,1718836242400,-500.0,0.00013698,2]
[329922727,1718836242412,-500.0,0.00013698,2]
[329922728,1718836242423,-500.0,0.00013698,2]
[329922729,1718836242435,-500.0,0.00013698,2]
[329922730,1718836242446,-500.0,0.00013698,2]
[329922731,1718836242458,-500.0,0.00013698,2]
[329922732,1718836242469,-500.0,0.00013698,2]
[329922733,1718836242481,-500.0,0.00013698,2]
[329922734,1718836242492,-732.18,0.00013698,2]
[329922735,1718836242505,-500.0,0.00013698,2]
[329922736,1718836242516,-500.0,0.00013698,2]
[329922737,1718836242528,-500.0,0.00013698,2]
[329922738,1718836242540,-500.0,0.00013698,2]
[329922739,1718836242552,-500.0,0.00013698,2]
[329922740,1718836242563,-534.2,0.00013698,2]
[329922741,1718836242574,-500.0,0.00013698,2]
[329922742,1718836242585,-500.0,0.00013698,2]
[329922743,1718836242596,-500.0,0.00013698,2]
[329922744,1718836242608,-500.0,0.00013698,2]
[329922745,1718836242619,-500.0,0.00013698,2]
[329922746,1718836242630,-500.0,0.00013698,2]
[329922747,1718836242642,-645.67,0.00013698,2]
[329922748,1718836242653,-500.0,0.00013698,2]
[329922749,1718836242664,-1513.49,0.00013698,2]
[329922750,1718836242676,-500.0,0.00013698,2]
[329922751,1718836242688,-500.0,0.00013698,2]
[329922752,1718836242699,-637.66,0.00013698,2]
[329922753,1718836242710,-848.84,0.00013698,2]
[329922754,1718836242722,-500.0,0.00013698,2]
[329922755,1718836242738,-500.0,0.00013698,2]
[329922756,1718836242750,-500.0,0.00013698,2]
[329922757,1718836242761,-500.0,0.00013698,2]
[329922758,1718836242773,-500.0,0.00013698,2]
[329922759,1718836242787,-841.56,0.00013698,2]
[329922760,1718836242799,-524.7481908,0.00013698,2]
[329922761,1718836242812,-500.0,0.00013698,2]
[329922762,1718836242825,-1581.13,0.00013698,2]
[329922763,1718836242836,-500.0,0.00013698,2]
[329922764,1718836242847,-500.0,0.00013698,2]
[329922765,1718836242858,-500.0,0.00013698,2]
[329922766,1718836242869,-1250.0,0.00013698,2]
[329922767,1718836242881,-500.0,0.00013698,2]
[329922768,1718836242893,-500.0,0.00013698,2]
[329922769,1718836242904,-500.0,0.00013698,2]
[329922770,1718836242915,-500.0,0.00013698,2]
[329922771,1718836242927,-500.0,0.00013698,2]
[329922772,1718836242939,-500.0,0.00013698,2]
[329922773,1718836242949,-500.0,0.00013698,2]
[329922774,1718836242961,-514.2,0.00013698,2]
[329922775,1718836242972,-500.0,0.00013698,2]
[329922776,1718836242983,-500.0,0.00013698,2]
[329922777,1718836242995,-500.0,0.00013698,2]
[329922778,1718836243006,-331.31056068,0.00013698,2]
[329922779,1718836243018,-1214.4,0.00013698,2]
[329922780,1718836243029,-992.14,0.00013698,2]
[329922781,1718836243041,-818.51,0.00013698,2]
[329922782,1718836243052,-1090.35,0.00013698,2]
[329922783,1718836243064,-500.0,0.00013698,2]
[329922784,1718836243075,-500.0,0.00013698,2]
[329922785,1718836243086,-500.0,0.00013698,2]
[329922786,1718836243098,-500.0,0.00013698,2]
[329922787,1718836243110,-179.85769788,0.00013698,2]
[329922788,1718836243121,-500.0,0.00013698,2]
[329922789,1718836243132,-500.0,0.00013698,2]
[329922790,1718836243144,-1169.69,0.00013698,2]
[329922791,1718836243156,-500.0,0.00013698,2]
[329922792,1718836243166,-851.22,0.00013698,2]
[329922793,1718836243178,-500.0,0.00013698,2]
[329922794,1718836243189,-500.0,0.00013698,2]
[329922795,1718836243201,-1576.69,0.00013698,2]
[329922796,1718836243211,-500.0,0.00013698,2]
[329922798,1718836243222,-639.15,0.00013698,2]
[329922800,1718836243234,-595.04,0.00013698,2]
[329922802,1718836243245,-620.60700367,0.00013698,2]
[329922805,1718836243256,-500.0,0.00013698,2]
[329922807,1718836243268,-500.0,0.00013698,2]
[329922809,1718836243279,-500.0,0.00013698,2]
[329922811,1718836243289,-500.0,0.00013698,2]
[329922813,1718836243300,-2421.66,0.00013698,2]
[329922815,1718836243311,-500.0,0.00013698,2]
[329922817,1718836243322,-500.0,0.00013698,2]
[329922819,1718836243334,-500.0,0.00013698,2]
[329922822,1718836243347,-500.0,0.00013698,2]
[329922824,1718836243359,-1908.26,0.00013698,2]
[329922826,1718836243369,-500.0,0.00013698,2]
[329922829,1718836243380,-547.64,0.00013698,2]
[329922831,1718836243391,-500.0,0.00013698,2]
[329922834,1718836243402,-573.48,0.00013698,2]
[329922837,1718836243413,-556.02,0.00013698,2]
[329922838,1718836243425,-1174.98,0.00013698,2]
[329922840,1718836243436,-500.0,0.00013698,2]
[329922842,1718836243448,-500.0,0.00013698,2]
[329922844,1718836243459,-500.0,0.00013698,2]
[329922846,1718836243470,-500.0,0.00013698,2]
[329922848,1718836243481,-1725.97,0.00013698,2]
[329922850,1718836243492,-1447.1,0.00013698,2]
[329922852,1718836243503,-500.0,0.00013698,2]
[329922854,1718836243515,-500.0,0.00013698,2]
[329922856,1718836243526,-1673.8,0.00013698,2]
[329922859,1718836243537,-500.0,0.00013698,2]
[329922861,1718836243549,-500.0,0.00013698,2]
[329922863,1718836243560,-500.0,0.00013698,2]
[329922865,1718836243571,-500.0,0.00013698,2]
[329922867,1718836243582,-500.0,0.00013698,2]
[329922869,1718836243593,-714.59,0.00013698,2]
[329922871,1718836243606,-1158.94,0.00013698,2]
[329922873,1718836243617,-500.0,0.00013698,2]
[329922875,1718836243628,-500.0,0.00013698,2]
[329922877,1718836243639,-1184.51,0.00013698,2]
[329922879,1718836243649,-514.97167907,0.00013698,2]
[329922882,1718836243661,-2351.94,0.00013698,2]
[329922883,1718836243672,-847.57,0.00013698,2]
[329922886,1718836243684,-500.0,0.00013698,2]
[329922888,1718836243694,-597.46505599,0.00013698,2]
[329922890,1718836243706,-500.0,0.00013698,2]
[329922892,1718836243717,-500.0,0.00013698,2]
[329922894,1718836243729,-500.0,0.00013698,2]
[329922896,1718836243741,-500.0,0.00013698,2]
[329922898,1718836243752,-500.0,0.00013698,2]
[329922900,1718836243763,-500.0,0.00013698,2]
[329922902,1718836243776,-500.0,0.00013698,2]
[329922904,1718836243788,-1546.3,0.00013698,2]
[329922906,1718836243798,-500.0,0.00013698,2]
[329922908,1718836243811,-500.0,0.00013698,2]
[329922910,1718836243822,-500.0,0.00013698,2]
[329922911,1718836243832,-500.0,0.00013698,2]
[329922912,1718836243844,-500.0,0.00013698,2]
[329922913,1718836243854,-500.0,0.00013698,2]
[329922914,1718836243866,-1025.09,0.00013698,2]
[329922915,1718836243876,-1227.02,0.00013698,2]
[329922916,1718836243887,-500.0,0.00013698,2]
[329922917,1718836243898,-501.65,0.00013698,2]
[329922918,1718836243909,-500.0,0.00013698,2]
[329922919,1718836243920,-500.0,0.00013698,2]
[329922920,1718836243930,-500.0,0.00013698,2]
[329922921,1718836243941,-500.0,0.00013698,2]
[329922922,1718836243952,-1193.15,0.00013698,2]
[329922923,1718836243963,-500.0,0.00013698,2]
[329922924,1718836243973,-500.0,0.00013698,2]
[329922925,1718836243984,-500.0,0.00013698,2]
[329922926,1718836243995,-1636.29,0.00013698,2]
[329922927,1718836244006,-500.0,0.00013698,2]
[329922928,1718836244016,-221.19027538,0.00013698,2]
[329922929,1718836244028,-500.0,0.00013698,2]
[329922930,1718836244039,-526.19,0.00013698,2]
[329922931,1718836244050,-500.0,0.00013698,2]
[329922932,1718836244061,-500.0,0.00013698,2]
[329922933,1718836244072,-500.0,0.00013698,2]
[329922934,1718836244082,-1153.59,0.00013698,2]
[329922935,1718836244093,-1360.18,0.00013698,2]
[329922936,1718836244104,-1783.35,0.00013698,2]
[329922937,1718836244115,-500.0,0.00013698,2]
[329922938,1718836244126,-712.04,0.00013698,2]
[329922939,1718836244137,-500.0,0.00013698,2]
[329922940,1718836244147,-711.17,0.00013698,2]
[329922941,1718836244158,-525.49141042,0.00013698,2]
[329922942,1718836244169,-500.0,0.00013698,2]
[329922944,1718836244180,-500.0,0.00013698,2]
[329922947,1718836244191,-500.0,0.00013698,2]
[329922951,1718836244202,-500.0,0.00013698,2]
[329922954,1718836244213,-500.0,0.00013698,2]
[329922956,1718836244224,-615.29279988,0.00013698,2]
[329922959,1718836244236,-500.0,0.00013698,2]
[329922961,1718836244246,-500.0,0.00013698,2]
[329922964,1718836244257,-500.0,0.00013698,2]
[329922967,1718836244269,-969.72,0.00013698,2]
[329922969,1718836244280,-1707.68,0.00013698,2]
[329922972,1718836244291,-500.0,0.00013698,2]
[329922974,1718836244302,-500.0,0.00013698,2]
[329922977,1718836244313,-437.15425176,0.00013698,2]
[329922979,1718836244323,-532.93,0.00013698,2]
[329922981,1718836244334,-563.71,0.00013698,2]
[329922983,1718836244345,-500.0,0.00013698,2]
[329922985,1718836244356,-1041.21,0.00013698,2]
[329922987,1718836244366,-500.0,0.00013698,2]
[329922989,1718836244377,-602.37824797,0.00013698,2]
[329922991,1718836244388,-500.0,0.00013698,2]
[329922994,1718836244399,-529.39,0.00013698,2]
[329922996,1718836244410,-1357.85,0.00013698,2]
[329922998,1718836244422,-500.0,0.00013698,2]
[329923000,1718836244432,-895.97,0.00013698,2]
[329923002,1718836244443,-523.15,0.00013698,2]
[329923005,1718836244455,-868.09,0.00013698,2]
[329923007,1718836244466,-640.86413671,0.00013698,2]
[329923009,1718836244477,-500.0,0.00013698,2]
[329923011,1718836244488,-500.0,0.00013698,2]
[329923013,1718836244499,-849.49,0.00013698,2]
[329923015,1718836244510,-500.0,0.00013698,2]
[329923018,1718836244522,-500.0,0.00013698,2]
[329923020,1718836244533,-500.0,0.00013698,2]
[329923022,1718836244545,-500.0,0.00013698,2]
[329923024,1718836244557,-898.48,0.00013698,2]
[329923026,1718836244568,-500.0,0.00013698,2]
[329923028,1718836244579,-500.0,0.00013698,2]
[329923030,1718836244590,-653.28,0.00013698,2]
[329923083,1718836245099,-500.0,0.00013698,2]
[329923087,1718836245136,-500.0,0.00013698,2]
[329923091,1718836245162,-500.0,0.00013698,2]
[329923093,1718836245174,-500.0,0.00013698,2]
[329923095,1718836245183,-1811.51,0.00013698,2]
[329923097,1718836245192,-1427.35,0.00013698,2]
[329923099,1718836245202,-500.0,0.00013698,2]
[329923101,1718836245211,-761.54,0.00013698,2]
[329923103,1718836245220,-500.0,0.00013698,2]
[329923105,1718836245229,-500.0,0.00013698,2]
[329923107,1718836245239,-500.0,0.00013698,2]
[329923109,1718836245248,-500.0,0.00013698,2]
[329923111,1718836245258,-500.0,0.00013698,2]
[329923113,1718836245267,-500.0,0.00013698,2]
[329923115,1718836245277,-500.0,0.00013698,2]
[329923118,1718836245287,-500.0,0.00013698,2]
[329923119,1718836245298,-515.07,0.00013698,2]
[329923122,1718836245308,-403.94659213,0.00013698,2]
[329923131,1718836245394,-1337.13340787,0.00013698,2]
[329923133,1718836245404,-500.0,0.00013698,2]
[329923135,1718836245413,-258.29443483,0.00013698,2]
[329923137,1718836245426,-500.15556517,0.00013698,2]
[329923139,1718836245435,-1423.81,0.00013698,2]
[329923141,1718836245446,-1623.4,0.00013698,2]
[329923143,1718836245456,-500.0,0.00013698,2]
[329923145,1718836245466,-719.17,0.00013698,2]
[329923147,1718836245476,-500.0,0.00013698,2]
[329923149,1718836245486,-1833.63,0.00013698,2]
[329923151,1718836245495,-586.84,0.00013698,2]
[329923153,1718836245504,-500.0,0.00013698,2]
[329923155,1718836245514,-500.0,0.00013698,2]
[329923157,1718836245523,-500.0,0.00013698,2]
[329923159,1718836245532,-605.17,0.00013698,2]
[329923161,1718836245541,-500.0,0.00013698,2]
[329923163,1718836245551,-552.79,0.00013698,2]
[329923165,1718836245560,-500.0,0.00013698,2]
[329923167,1718836245570,-500.0,0.00013698,2]
[329923169,1718836245579,-500.0,0.00013698,2]
[329923171,1718836245589,-500.0,0.00013698,2]
[329923173,1718836245597,-1095.24,0.00013698,2]
[329923175,1718836245607,-977.88,0.00013698,2]
[329923177,1718836245617,-537.71,0.00013698,2]
[329923179,1718836245627,-500.0,0.00013698,2]
[329923181,1718836245637,-500.0,0.00013698,2]